bitfinex/quotes_SOLUSD_20250830
["timestamp","ask_amount","ask_price","bid_price","bid_amount"]
[1756575476290,5.36521477,201.22,201.21,57.42552592]
[1756575479177,5.36521477,201.22,201.21,57.45552592]
[1756575479889,0.7,201.22,201.21,57.45552592]
[1756575480077,5.36521477,201.22,201.21,57.45552592]
[1756575480496,5.36521477,201.22,201.21,52.48559401]
[1756575481000,0.7,201.22,201.21,52.48559401]
[1756575481369,0.7,201.22,201.21,57.45552592]
[1756575481670,4.66521477,201.23,201.21,57.45552592]
[1756575481993,5.38521477,201.23,201.21,57.45552592]
[1756575482603,4.66521477,201.22,201.21,57.45552592]
[1756575483493,5.38521477,201.23,201.21,57.45552592]
[1756575484793,4.66521477,201.23,201.21,57.45552592]
[1756575484998,5.38521477,201.22,201.21,52.48559401]
[1756575486877,4.66521477,201.22,201.21,52.48559401]
[1756575487777,0.72,201.24,201.21,57.45542296]
[1756575487985,4.66521477,201.22,201.21,57.45542296]
[1756575489408,5.38521477,201.22,201.21,0.03]
[1756575489587,5.38521477,201.22,201.21,38.79]
[1756575489788,10.35489969,201.22,201.21,0.03]
[1756575490012,10.35489969,201.22,201.21,38.79]
[1756575490207,12.34807269,201.22,201.21,38.79]
[1756575491686,10.35489969,201.22,201.21,38.79]
[1756575493014,5.38521477,201.22,201.21,38.79]
[1756575493400,10.35489969,201.22,201.21,38.79]
[1756575494093,10.35489969,201.22,201.21,0.03]
[1756575494300,15.02011446,201.22,201.21,0.03]
[1756575494787,4.66521477,201.19,201.18,0.03]
[1756575494988,35.63564073,201.19,201.18,0.03]
[1756575495215,10.35564073,201.19,201.18,0.03]
[1756575495517,14.952526,201.19,201.18,14.29559401]
[1756575495726,4.66521478,201.25,201.18,18.96080878]
[1756575496014,4.66521478,201.25,201.17,39.25709201]
[1756575496015,1e-08,201.25,201.2,18.26080878]
[1756575496199,1e-08,201.25,201.22,13.59559401]
[1756575496606,1e-08,201.25,201.23,0.7]
[1756575496832,1e-08,201.25,201.24,38.9]
[1756575496833,30.66521478,201.25,201.24,38.9]
[1756575497014,4.66521478,201.25,201.24,38.9]
[1756575497519,30.66521478,201.25,201.24,38.9]
[1756575501630,30.66521478,201.25,201.22,14.29559401]
[1756575501926,4.66521478,201.25,201.23,38.86]
[1756575502118,4.66521478,201.25,201.23,39.56]
[1756575502628,30.66521478,201.25,201.23,38.86]
[1756575502830,4.66521477,201.24,201.23,38.86]
[1756575505130,1e-08,201.25,201.23,38.86]
[1756575505311,4.66521477,201.24,201.23,38.86]
[1756575507523,4.66521477,201.24,201.21,0.7]
[1756575507739,1e-08,201.25,201.22,39.52]
[1756575507936,4.66521477,201.23,201.22,39.52]
[1756575508121,26.0,201.22,201.18,13.59559401]
[1756575508319,26.0,201.22,201.19,38.82]
[1756575508628,0.72,201.21,201.15,85.20120682]
[1756575508923,0.72,201.21,201.16,52.41559401]
[1756575509118,0.72,201.21,201.16,53.11559401]
[1756575509323,4.66521477,201.19,201.17,0.7]
[1756575509541,4.66521477,201.2,201.17,0.7]
[1756575509743,4.66521477,201.2,201.18,0.7]
[1756575510043,4.66521477,201.2,201.19,38.82]
[1756575517735,5.38521477,201.2,201.19,38.82]
[1756575519169,30.66521477,201.2,201.19,38.82]
[1756575520182,30.66521477,201.2,201.19,38.76]
[1756575523064,14.948801,201.24,201.2,13.59559401]
[1756575523065,4.17770875,201.24,201.2,13.59559401]
[1756575523266,4.66521478,201.25,201.22,13.59559401]
[1756575523449,4.66521478,201.25,201.23,38.74]
[1756575526490,4.66521477,201.24,201.23,38.74]
[1756575527286,26.72000001,201.25,201.23,38.74]
[1756575527569,4.66521477,201.24,201.23,38.74]
[1756575527754,26.00000001,201.25,201.23,38.74]
[1756575527953,4.66521477,201.24,201.23,38.74]
[1756575528165,4.66521478,201.25,201.23,38.74]
[1756575528559,1e-08,201.25,201.23,38.74]
[1756575528762,4.66521478,201.25,201.23,38.74]
[1756575529171,31.38521478,201.25,201.23,38.74]
[1756575529465,4.66521477,201.24,201.23,38.74]
[1756575531281,30.66521478,201.25,201.23,38.74]
[1756575531656,30.66521478,201.25,201.23,43.70943238]
[1756575531868,1e-08,201.25,201.24,0.68]
[1756575532475,1e-08,201.25,201.24,14.27559401]
[1756575538492,5.38521478,201.25,201.19,79.5]
[1756575538796,4.66521477,201.23,201.2,52.91559401]
[1756575539096,4.66521477,201.23,201.22,13.59559401]
[1756575539286,4.66521477,201.23,201.22,52.25559401]
[1756575539464,30.66521477,201.24,201.22,52.25559401]
[1756575539670,4.66521478,201.25,201.24,13.59559401]
[1756575539865,26.00000001,201.25,201.24,52.23559401]
[1756575540266,1e-08,201.25,201.24,57.58080878]
[1756575540588,1e-08,201.25,201.24,57.24478502]
[1756575540770,1e-08,201.25,201.24,57.92478502]
[1756575540977,1e-08,201.25,201.24,38.7]
[1756575540978,5.38521478,201.25,201.24,38.7]
[1756575543072,31.38521478,201.25,201.24,38.7]
[1756575545376,30.66521478,201.25,201.24,38.7]
[1756575545798,26.00000001,201.25,201.24,38.7]
[1756575546009,1e-08,201.25,201.24,38.7]
[1756575546674,4.66521478,201.25,201.24,38.7]
[1756575548286,26.0,201.22,201.19,13.59559401]
[1756575548486,4.66521477,201.2,201.18,0.03]
[1756575548692,0.67,201.21,201.19,38.66]
[1756575549121,26.67,201.21,201.19,38.66]
[1756575549614,0.67000001,201.25,201.2,14.26559401]
[1756575549920,4.66521477,201.23,201.21,39.39]
[1756575550916,4.66521478,201.25,201.22,14.26559401]
[1756575551106,4.66521478,201.25,201.23,39.41]
[1756575554404,4.66521477,201.24,201.23,52.33559401]
[1756575557428,1e-08,201.25,201.23,52.33559401]
[1756575557725,4.66521477,201.24,201.23,52.33559401]
[1756575558625,4.66521477,201.24,201.23,53.00559401]
[1756575558811,4.66521478,201.25,201.23,53.00559401]
[1756575559130,4.66521478,201.25,201.24,0.67]
[1756575559326,4.66521478,201.25,201.23,52.33559401]
[1756575559510,4.66521478,201.25,201.23,53.00559401]
[1756575559709,4.66521478,201.25,201.24,18.93080878]
[1756575559710,1e-08,201.25,201.24,18.93080878]
[1756575559909,1e-08,201.25,201.24,19.42772788]
[1756575560105,0.06,201.26,201.24,19.42772788]
[1756575560308,0.06,201.26,201.25,57.67080878]
[1756575561030,0.06,201.26,201.25,58.16770318]
[1756575561328,0.06,201.26,201.25,63.13664727]
[1756575562108,0.06,201.26,201.25,24.39664727]
[1756575562310,0.06,201.26,201.25,63.13664727]
[1756575564718,0.06,201.26,201.25,19.7314325]
[1756575564922,0.06,201.26,201.25,58.4514325]
[1756575565523,0.06,201.26,201.25,63.11664727]
[1756575566237,0.06,201.26,201.25,58.4514325]
[1756575566423,0.06,201.26,201.25,63.11664727]
[1756575567340,0.06,201.26,201.25,58.4514325]
[1756575567522,0.06,201.26,201.25,63.11664727]
[1756575569233,0.06,201.26,201.25,19.0614325]
[1756575569440,0.06,201.26,201.25,57.2645381]
[1756575569654,0.06,201.26,201.25,57.9345381]
[1756575569841,0.06,201.26,201.25,62.59975287]
[1756575570456,0.06,201.26,201.25,142.09975287]
[1756575571135,0.06,201.26,201.25,136.7645381]
[1756575571332,0.06,201.26,201.25,142.09975287]
[1756575572438,0.06,201.26,201.25,137.4345381]
[1756575572737,0.06,201.26,201.25,142.09975287]
[1756575574737,0.06,201.26,201.25,98.0645381]
[1756575574940,0.06,201.26,201.25,136.7445381]
[1756575575145,0.77,201.26,201.25,93.09559401]
[1756575575445,0.77,201.26,201.25,136.7445381]
[1756575577032,5.43521477,201.26,201.25,93.09559401]
[1756575577232,5.43521477,201.26,201.25,38.68]
[1756575578260,5.43521477,201.26,201.22,13.59559401]
[1756575578436,4.66521477,201.23,201.22,13.59559401]
[1756575578621,5.37521477,201.23,201.22,52.27559401]
[1756575580562,4.66521477,201.23,201.22,52.27559401]
[1756575580935,5.37521477,201.23,201.22,52.27559401]
[1756575582260,4.66521477,201.23,201.22,52.27559401]
[1756575583764,4.66521477,201.23,201.22,52.30559401]
[1756575584255,5.37521477,201.23,201.22,0.03]
[1756575584458,5.37521477,201.23,201.22,38.69]
[1756575587654,5.02893969,201.26,201.22,38.69]
[1756575587655,0.71,201.25,201.22,38.69]
[1756575587849,4.66521477,201.23,201.22,52.28559401]
[1756575592059,0.06,201.26,201.23,13.59559401]
[1756575592258,0.06,201.26,201.25,13.59559401]
[1756575592645,0.06,201.26,201.25,14.26559401]
[1756575592858,0.06,201.26,201.25,24.39664727]
[1756575594174,0.06,201.26,201.25,19.7314325]
[1756575594462,0.06,201.26,201.25,24.39664727]
[1756575599265,0.06,201.26,201.25,103.89664727]
[1756575599472,0.06,201.26,201.25,103.39975287]
[1756575602460,0.73,201.26,201.25,93.09559401]
[1756575602665,0.73,201.26,201.25,136.7045381]
[1756575602961,5.39521477,201.26,201.25,93.09559401]
[1756575603280,5.39521477,201.26,201.25,52.23559401]
[1756575604681,0.73,201.26,201.25,52.23559401]
[1756575604879,5.39521477,201.26,201.25,52.23559401]
[1756575608054,5.39521477,201.26,201.22,0.03]
[1756575608388,0.67,201.25,201.22,13.62559401]
[1756575608586,0.67,201.25,201.23,38.64]
[1756575608786,0.67,201.24,201.23,13.59559401]
[1756575608966,26.0,201.23,201.22,0.03]
[1756575609159,26.0,201.23,201.22,38.67]
[1756575609488,31.33521477,201.23,201.22,38.67]
[1756575612871,36.30465272,201.23,201.22,0.03]
[1756575613184,36.30465272,201.23,201.22,38.67]
[1756575613770,51.25196372,201.23,201.22,38.67]
[1756575614093,36.30465272,201.23,201.22,38.67]
[1756575614268,51.25196372,201.23,201.22,38.67]
[1756575615889,31.33521477,201.23,201.22,38.67]
[1756575618286,30.66521477,201.23,201.22,38.67]
[1756575618471,31.33521477,201.23,201.22,38.67]
[1756575618671,26.0,201.23,201.22,38.67]
[1756575618893,30.66521477,201.23,201.22,38.67]
[1756575619275,26.67,201.23,201.22,38.67]
[1756575619482,31.33521477,201.23,201.22,38.67]
[1756575620698,30.66521477,201.23,201.22,38.67]
[1756575621608,31.33521477,201.23,201.22,38.67]
[1756575622379,36.30465272,201.23,201.22,0.03]
[1756575623410,38.29772772,201.23,201.22,0.03]
[1756575630232,42.96294249,201.23,201.19,0.03]
[1756575630406,37.14219286,201.23,201.19,0.03]
[1756575630713,4.66521477,201.2,201.19,0.69]
[1756575630901,27.993075,201.23,201.2,0.66]
[1756575631217,30.66521477,201.21,201.2,38.66]
[1756575631611,31.31521477,201.21,201.2,38.66]
[1756575632004,31.31521477,201.21,201.19,0.03]
[1756575632331,40.30060846,201.2,201.19,0.03]
[1756575632820,55.90164446,201.2,201.19,0.03]
[1756575633935,50.58642969,201.2,201.19,0.03]
[1756575634727,51.23642969,201.2,201.19,0.03]
[1756575636128,55.90164446,201.2,201.19,0.03]
[1756575637123,51.23642969,201.2,201.19,0.03]
[1756575638811,55.90164446,201.2,201.19,0.03]
[1756575639002,60.08132437,201.2,201.18,0.03]
[1756575639219,4.66521477,201.19,201.18,0.03]
[1756575639611,7.30898477,201.19,201.18,0.03]
[1756575640123,12.27941073,201.19,201.18,0.03]
[1756575641649,26.0,201.16,201.15,0.03]
[1756575641818,30.66521477,201.16,201.15,0.03]
[1756575642138,5.31521477,201.16,201.15,0.03]
[1756575642342,33.30938177,201.16,201.15,0.03]
[1756575642635,7.30938177,201.16,201.15,0.03]
[1756575642833,12.280549,201.16,201.15,0.03]
[1756575643032,37.630549,201.16,201.15,0.03]
[1756575643222,11.630549,201.16,201.15,0.03]
[1756575643925,12.280549,201.16,201.15,0.03]
[1756575644308,11.630549,201.16,201.15,0.03]
[1756575644637,37.630549,201.16,201.15,0.03]
[1756575644839,12.280549,201.16,201.15,0.03]
[1756575648339,37.630549,201.16,201.15,0.03]
[1756575648546,11.630549,201.16,201.15,0.03]
[1756575648837,38.280549,201.16,201.15,0.03]
[1756575649018,12.280549,201.16,201.15,0.03]
[1756575650242,1.994167,201.16,201.15,0.73]
[1756575650477,6.65938177,201.16,201.15,0.73]
[1756575650742,30.66521477,201.16,201.15,0.73]
[1756575651348,30.66521477,201.16,201.15,0.03]
[1756575651735,23.881977,201.16,201.15,0.03]
[1756575652940,49.881977,201.16,201.15,0.03]
[1756575653129,23.881977,201.16,201.15,0.03]
[1756575655647,49.881977,201.16,201.15,0.03]
[1756575655863,23.881977,201.16,201.15,0.03]
[1756575656364,19.21676223,201.16,201.15,0.03]
[1756575656541,23.881977,201.16,201.15,0.03]
[1756575657140,49.881977,201.16,201.15,0.03]
[1756575657667,23.881977,201.16,201.15,0.03]
[1756575658235,26.0,201.14,201.13,0.03]
[1756575658539,30.66521477,201.14,201.13,0.03]
[1756575658749,5.31521477,201.14,201.13,0.03]
[1756575658944,5.31521477,201.14,201.12,0.03]
[1756575658945,26.0,201.13,201.12,0.03]
[1756575659149,35.33042954,201.13,201.1,0.03]
[1756575659454,9.33042954,201.11,201.1,0.03]
[1756575659864,9.98042954,201.11,201.1,0.03]
[1756575660376,14.9528327,201.11,201.1,0.03]
[1756575660674,9.63761793,201.11,201.1,0.03]
[1756575660844,1.994565,201.12,201.1,0.73]
[1756575661046,4.66521477,201.11,201.1,0.03]
[1756575661571,4.66521477,201.11,201.1,0.71]
[1756575662447,30.66521477,201.11,201.1,0.71]
[1756575663069,4.66521477,201.11,201.1,0.03]
[1756575663270,10.02042954,201.11,201.1,0.03]
[1756575664375,14.9928327,201.11,201.1,0.03]
[1756575667572,53.6728327,201.11,201.1,0.03]
[1756575668070,14.9928327,201.11,201.1,0.03]
[1756575668454,16.9874977,201.11,201.1,0.03]
[1756575673577,7.65706816,201.11,201.1,0.03]
[1756575673785,6.65987977,201.11,201.1,0.71]
[1756575674963,16.2974977,201.11,201.1,0.03]
[1756575675178,16.9874977,201.11,201.1,0.03]
[1756575675885,26.0,201.09,201.08,0.03]
[1756575676072,4.66521477,201.09,201.08,0.03]
[1756575676384,5.35521477,201.09,201.08,0.03]
[1756575676683,7.34997877,201.09,201.08,0.03]
[1756575677591,12.32287647,201.09,201.08,0.03]
[1756575678575,26.0,201.08,201.07,0.03]
[1756575678877,30.66521477,201.08,201.07,0.03]
[1756575679181,32.65997877,201.08,201.07,0.03]
[1756575679578,37.63312378,201.08,201.07,0.03]
[1756575680087,32.65997877,201.08,201.07,0.71]
[1756575681572,37.63312378,201.08,201.07,0.71]
[1756575682073,37.63312378,201.08,201.07,0.03]
[1756575682279,38.32312378,201.08,201.07,0.03]
[1756575685678,37.63312378,201.08,201.07,0.03]
[1756575686881,38.32312378,201.08,201.07,0.03]
[1756575688191,33.65790901,201.08,201.07,0.03]
[1756575688392,37.63312378,201.08,201.07,0.03]
[1756575688692,38.32312378,201.08,201.07,0.03]
[1756575690093,37.63312378,201.08,201.07,0.03]
[1756575690279,38.32312378,201.08,201.07,0.03]
[1756575692775,38.32312378,201.08,201.05,0.03]
[1756575692776,42.50201196,201.08,201.05,0.03]
[1756575692995,4.66521477,201.06,201.05,0.03]
[1756575693990,11.63381747,201.06,201.05,0.03]
[1756575694190,12.33381747,201.06,201.05,0.03]
[1756575694883,11.63381747,201.06,201.05,0.03]
[1756575695703,12.33381747,201.06,201.05,0.03]
[1756575697379,11.63381747,201.06,201.05,0.03]
[1756575699383,15.81270565,201.06,201.05,0.03]
[1756575704315,15.82631198,201.06,201.05,0.03]
[1756575704480,11.63381747,201.06,201.05,0.03]
[1756575705684,15.82612884,201.06,201.05,0.03]
[1756575706705,6.18727437,201.06,201.05,0.68]
[1756575706896,4.66521477,201.06,201.05,0.68]
[1756575707587,35.63885447,201.06,201.05,0.03]
[1756575707982,41.82582984,201.06,201.05,0.03]
[1756575712211,42.52582984,201.06,201.05,0.03]
[1756575712610,12.33351847,201.06,201.05,0.03]
[1756575712999,26.0,201.04,201.02,0.03]
[1756575713314,26.0,201.05,201.02,0.03]
[1756575713315,8.86007357,201.03,201.02,0.03]
[1756575713521,9.56007357,201.03,201.02,0.03]
[1756575713721,24.52453257,201.03,201.02,0.03]
[1756575714510,29.4989145,201.03,201.02,0.03]
[1756575715026,25.3040557,201.03,201.02,0.03]
[1756575715214,25.3040557,201.03,200.96,0.65]
[1756575715215,26.0,201.0,200.96,0.65]
[1756575715401,4.66521477,200.97,200.96,0.65]
[1756575715603,4.66521477,200.97,200.95,38.68]
[1756575715835,4.66521477,200.96,200.92,13.59559401]
[1756575716033,14.965953,200.99,200.92,13.59559401]
[1756575716034,4.66521477,200.94,200.92,13.59559401]
[1756575716210,4.66521477,200.94,200.93,14.24559401]
[1756575718239,4.66521477,200.94,200.88,79.5]
[1756575718427,26.0,200.94,200.91,0.65]
[1756575718833,26.0,200.93,200.92,0.65]
[1756575719515,4.66521477,200.93,200.92,0.65]
[1756575720524,4.1945503,201.0,200.93,13.59559401]
[1756575720713,4.66521477,200.95,200.94,14.24559401]
[1756575721034,4.66521477,200.95,200.94,0.65]
[1756575721334,4.66521477,200.95,200.93,38.68]
[1756575721335,4.66521477,200.95,200.92,0.67]
[1756575721635,4.66521477,200.93,200.92,0.67]
[1756575721936,4.66521477,200.93,200.91,38.68]
[1756575722138,4.66521477,200.92,200.91,39.35]
[1756575722316,30.66521477,200.92,200.91,39.35]
[1756575723544,30.66521477,200.92,200.91,38.68]
[1756575723915,30.66521477,200.92,200.91,39.35]
[1756575724113,31.68715888,200.92,200.81,14.96894]
[1756575724351,26.0,200.92,200.84,9.64416588]
[1756575724527,4.66521477,200.9,200.86,13.59559401]
[1756575724721,4.66521477,200.9,200.84,9.64416588]
[1756575724918,4.66521477,200.91,200.86,13.59559401]
[1756575725132,4.66521477,200.91,200.87,39.35]
[1756575725336,4.66521477,200.91,200.88,0.03]
[1756575725644,4.66521477,200.91,200.89,13.59559401]
[1756575725865,26.0,200.93,200.9,0.67]
[1756575726016,4.66521477,200.91,200.9,14.26559401]
[1756575726215,26.0,200.94,200.9,0.67]
[1756575726435,4.97690584,200.93,200.88,14.29559401]
[1756575726634,4.66521477,200.89,200.88,13.62559401]
[1756575727228,4.66521477,200.89,200.88,14.29559401]
[1756575727541,4.66521477,200.9,200.88,14.29559401]
[1756575727741,4.66521477,200.9,200.89,0.67]
[1756575727945,0.71,200.94,200.89,0.67]
[1756575728126,26.0,200.95,200.89,0.67]
[1756575728323,4.66521477,200.91,200.89,0.67]
[1756575728730,4.66521477,200.91,200.88,13.62559401]
[1756575728731,4.66521477,200.91,200.9,0.67]
[1756575729145,26.71,200.95,200.9,0.67]
[1756575729320,4.66521477,200.92,200.9,0.67]
[1756575729525,26.71,200.95,200.91,0.67]
[1756575729746,4.66521477,200.92,200.91,0.67]
[1756575729942,4.66521477,200.92,200.89,0.67]
[1756575730127,4.66521477,200.91,200.9,0.67]
[1756575732556,4.66521477,200.92,200.9,5.64759338]
[1756575732855,26.0,200.95,200.92,13.59559401]
[1756575733026,26.0,200.95,200.92,14.26559401]
[1756575733332,4.66521477,200.94,200.92,14.26559401]
[1756575733669,4.66521477,200.96,200.94,13.59559401]
[1756575733842,0.71,200.99,200.96,13.59559401]
[1756575734152,4.66521477,200.97,200.96,13.59559401]
[1756575737949,0.71,200.99,200.96,13.59559401]
[1756575737950,26.0,200.98,200.96,13.59559401]
[1756575738150,4.66521477,200.97,200.96,13.59559401]
[1756575739052,4.66521477,200.97,200.89,13.59559401]
[1756575739356,4.66521477,200.98,200.95,13.59559401]
[1756575739550,4.66521477,200.98,200.96,38.68]
[1756575739746,26.0,200.99,200.96,38.68]
[1756575739930,4.66521477,200.98,200.96,38.68]
[1756575740131,4.66521477,200.98,200.96,39.35]
[1756575740954,26.0,200.99,200.96,39.35]
[1756575741155,4.66521477,201.01,200.97,14.26559401]
[1756575741449,4.66521477,201.01,200.99,13.59559401]
[1756575741650,4.66521477,201.01,201.0,52.27559401]
[1756575743163,4.66521477,201.01,201.0,13.59559401]
[1756575743335,5.37521477,201.01,201.0,38.68]
[1756575743649,10.35017653,201.01,200.98,13.59559401]
[1756575743829,4.66521477,200.99,200.98,13.59559401]
[1756575744030,30.66521477,200.99,200.98,52.27559401]
[1756575744354,30.66521477,200.99,200.98,13.59559401]
[1756575744558,5.37521477,200.99,200.97,79.5]
[1756575744849,26.71,200.99,200.98,38.68]
[1756575745742,0.06,201.02,200.99,13.59559401]
[1756575745949,0.06,201.02,201.0,38.68]
[1756575745950,30.66521477,201.01,201.0,38.68]
[1756575746254,30.66521477,201.01,200.99,14.26559401]
[1756575746461,30.66521477,201.01,201.0,38.68]
[1756575747037,26.06,201.02,201.0,39.35]
[1756575747262,0.06,201.02,201.01,0.67]
[1756575747446,0.06,201.02,201.01,38.68]
[1756575748737,4.72521477,201.02,201.0,13.59559401]
[1756575749032,4.72521477,201.02,201.01,38.68]
[1756575749256,4.72521477,201.02,201.0,13.59559401]
[1756575749558,4.66521477,201.01,201.0,13.59559401]
[1756575749865,4.66521477,201.01,201.0,52.27559401]
[1756575750560,0.06,201.02,201.0,52.27559401]
[1756575750561,4.72521477,201.02,201.0,52.27559401]
[1756575751262,0.06,201.02,201.0,52.95559401]
[1756575751741,0.06,201.02,201.01,14.27559401]
[1756575752443,0.06,201.02,201.01,19.25047088]
[1756575753463,4.72521477,201.02,201.0,13.59559401]
[1756575753760,0.06,201.02,201.01,52.27559401]
[1756575754856,4.72521477,201.02,201.01,52.27559401]
[1756575755366,0.06,201.02,201.01,52.27559401]
[1756575755538,4.72521477,201.02,201.01,52.27559401]
[1756575757952,0.06,201.02,201.01,52.95559401]
[1756575758751,0.06,201.02,201.01,57.93047088]
[1756575761870,0.06,201.02,201.01,13.62559401]
[1756575762057,4.72521477,201.02,201.01,13.62559401]
[1756575762262,5.42521477,201.02,201.01,52.28559401]
[1756575762473,30.72521477,201.02,201.01,52.28559401]
[1756575764460,0.06,201.02,201.01,52.96559401]
[1756575765685,0.06,201.02,201.01,57.94047088]
[1756575766455,4.72521477,201.02,201.01,52.28559401]
[1756575766673,5.42521477,201.02,201.01,52.28559401]
[1756575768057,5.42521477,201.02,201.01,0.03]
[1756575768262,10.39984416,201.02,201.01,0.03]
[1756575768663,25.36430416,201.02,201.01,0.03]
[1756575772178,5.42521477,201.02,201.01,0.03]
[1756575772477,10.39984416,201.02,201.01,0.03]
[1756575776281,14.58056198,201.02,201.01,0.03]
[1756575776789,10.39984416,201.02,201.01,0.03]
[1756575779983,14.58056198,201.02,201.01,0.03]
[1756575780180,19.24577675,201.02,201.01,0.03]
[1756575780374,10.39984416,201.02,201.01,0.03]
[1756575780680,29.55685166,201.02,201.01,0.03]
[1756575781373,30.02951793,201.02,201.01,0.03]
[1756575782295,25.36430316,201.02,201.01,0.03]
[1756575782501,30.02951793,201.02,201.01,0.03]
[1756575783401,25.36430316,201.02,201.01,0.03]
[1756575784782,24.66430316,201.02,201.01,0.03]
[1756575784988,25.32430316,201.02,201.01,0.03]
[1756575788398,15.024459,201.02,201.01,0.03]
[1756575788603,14.55153343,201.02,201.01,0.03]
[1756575788903,14.55153343,201.02,200.98,0.03]
[1756575788904,26.0,200.99,200.98,0.03]
[1756575789104,34.85701628,200.99,200.98,0.03]
[1756575789399,9.51701628,200.99,200.98,0.03]
[1756575789602,50.48446228,200.99,200.98,0.03]
[1756575789806,24.48446228,200.99,200.98,0.03]
[1756575790297,25.26803267,200.99,200.98,0.03]
[1756575793608,19.63266077,200.99,200.98,0.7]
[1756575794105,4.66521477,200.99,200.98,0.7]
[1756575794294,4.66521477,200.99,200.98,0.03]
[1756575795415,9.64058667,200.99,200.98,0.03]
[1756575795909,10.30058667,200.99,200.98,0.03]
[1756575796114,29.46058018,200.99,200.98,0.03]
[1756575796786,55.46058018,200.99,200.98,0.03]
[1756575797012,29.46058018,200.99,200.98,0.03]
[1756575798089,55.46058018,200.99,200.98,0.03]
[1756575798318,26.0,200.97,200.96,0.03]
[1756575798512,4.66521477,200.97,200.96,0.03]
[1756575798815,31.32521477,200.97,200.96,0.03]
[1756575798990,33.32097377,200.97,200.96,0.03]
[1756575799695,38.29684081,200.97,200.96,0.03]
[1756575806219,42.48608812,200.97,200.96,0.03]
[1756575806923,37.16087335,200.97,200.96,0.03]
[1756575807123,37.63684081,200.97,200.96,0.03]
[1756575807499,37.63684081,200.97,200.96,0.7]
[1756575807705,11.63684081,200.97,200.96,0.03]
[1756575808002,11.63684081,200.97,200.96,0.7]
[1756575808003,4.66521477,200.97,200.96,0.7]
[1756575808427,30.66521477,200.97,200.96,0.7]
[1756575808926,4.66521477,200.97,200.96,0.7]
[1756575809915,30.66521477,200.97,200.96,0.7]
[1756575811723,30.66521477,200.98,200.96,14.29559401]
[1756575811921,30.66521477,200.98,200.97,0.68]
[1756575813512,30.66521477,200.98,200.97,0.71]
[1756575815543,30.66521477,200.98,200.97,0.03]
[1756575816714,26.0,200.98,200.97,0.71]
[1756575816944,30.66521477,200.98,200.97,0.71]
[1756575817243,30.66521477,200.98,200.97,0.03]
[1756575817537,30.66521477,200.98,200.97,0.71]
[1756575819031,30.66521477,200.98,200.97,0.03]
[1756575819618,0.06,200.99,200.97,0.71]
[1756575819839,30.72521477,200.99,200.98,0.68]
[1756575820541,31.42521477,200.99,200.97,0.03]
[1756575820720,9.55834164,200.98,200.97,0.03]
[1756575821042,8.85834164,200.98,200.97,0.03]
[1756575821212,9.55834164,200.98,200.97,0.03]
[1756575821411,9.55954445,200.98,200.97,0.03]
[1756575821932,14.53516391,200.98,200.97,0.03]
[1756575822243,14.53516391,200.98,200.95,0.03]
[1756575822244,26.0,200.96,200.95,0.03]
[1756575822411,34.86031704,200.96,200.95,0.03]
[1756575822614,35.56031704,200.96,200.95,0.03]
[1756575823326,40.53643168,200.96,200.95,0.03]
[1756575826745,36.34132941,200.96,200.95,0.03]
[1756575827635,36.34132941,200.96,200.94,0.03]
[1756575827835,8.86009081,200.95,200.94,0.03]
[1756575828221,8.86009081,200.95,200.93,0.03]
[1756575828222,9.56009081,200.95,200.93,0.03]
[1756575828545,4.66521477,200.94,200.93,0.03]
[1756575829033,5.36521477,200.94,200.93,0.03]
[1756575830148,5.67660993,200.94,200.93,0.03]
[1756575830330,10.3418247,200.94,200.93,0.03]